Cogmind - Beta 16 @@@ ROGUE MODE // 2025.11.10 @ 17:53:30 Player: Mozco Result: Self-destructed Performance ------------- Evolutions (8) 4000 Regions Visited (29) 5800 Robots Destroyed (294) 1470 Value Destroyed (17273) 17273 Prototype IDs (109) 2180 Alien Tech Used (6) 1200 Bonus (15085) 15085 TOTAL SCORE: 47008 Bonus ------- Triggered Max Security 1000 High Alert Combat Kills 1255 Follower Combat Kills 2441 Network Hubs Disabled 200 Aligned with FarCom 300 Met Data Miner 300 Met Zhirov 300 Met Warlord at Base 500 MAIN.C Attacked Warlord 500 Built Enhanced Grunts 300 Met R17 at Cetus 500 Found Hidden Lab 3000 Used Core Reset Matrix 3000 Met R17 at Research 2000 Met Warlord at Research 2000 Met Sigix 2000 Friendly Fire -4511 Cogmind --------- Core Integrity 1127/1450 Matter 150/300 Energy 340/340 System Corruption 60% Temperature Cool (0) Movement Walking (203) Ox1 Location -2/Quarantine Parts ------- > --- POWER (3) -------- Graviton Reactor > --- PROPULSION (7) --- Enhanced Armored Leg Shield Leg Enhanced Biometal Leg Heavy Shield Leg > --- UTILITY (4) ------ High-capacity Storage Unit Deep Network Scanner > --- WEAPON (10) ------ Heavy Laser Nova Cannon Enhanced Nova Cannon Warp Cannon Gamma Bomb Array > --- INVENTORY (20) --- Quantum Reactor Quantum Reactor Myomer Leg Myomer Leg Myomer Leg Myomer Leg Enhanced Biometal Leg Advanced Cryofiber Web Experimental Heat Sink Coolant Network Advanced Energy Well (500) Experimental Matter Compressor (500) Structural Scanner Centrium Medium Armor Plating AEGIS Remote Shield Experimental Hacking Suite Improved System Restoration Module Subatomic Replicator Peak State ------------ > --- POWER ------------ Graviton Reactor Vortex Chain Reactor > --- PROPULSION ------- Shield Leg Improved Thunder Leg Improved Thunder Leg Enhanced Biometal Leg Enhanced Biometal Leg Heavy Shield Leg > --- UTILITY ---------- Coolant Network High-capacity Storage Unit Deep Network Scanner > --- WEAPON ----------- Heavy Tesla Rifle Tachyon Dispersion Ray Enhanced Quantum Rifle Enhanced Nova Cannon Enhanced Nova Cannon Enhanced Nova Cannon Enhanced Nova Cannon Enhanced Nova Cannon Enhanced Nova Cannon Gamma Bomb Array > --- INVENTORY -------- Quantum Reactor Quantum Reactor Enhanced Armored Leg Shield Leg Improved Thunder Leg Enhanced Biometal Leg Advanced Cryofiber Web Experimental Heat Sink Advanced Energy Well Experimental Matter Compressor Structural Scanner Centrium Medium Armor Plating AEGIS Remote Shield Experimental Hacking Suite Improved System Restoration Module Transdimensional Reconstructor Warp Cannon Gamma Bomb Array Vortex Catalyst Activator [Rating: 221] Favorites ----------- Power Cold Fusion Reactor Engine Heavy Deuterium Engine Power Core Cooled Fission Core Reactor Cold Fusion Reactor Propulsion Carbon-fiber Leg Leg Carbon-fiber Leg Utility High-capacity Storage Unit Device Advanced Heat Sink Storage High-capacity Storage Unit Processor Advanced Targeting Computer Hackware System Mapper Protection Medium Regenerative Plating Weapon Matter Neutralizer Energy Gun Variable Charge Gun Energy Cannon Matter Neutralizer Ballistic Gun Railgun Ballistic Cannon Flak Cannon Launcher Heavy Shock Bomb Launcher Special Weapon Enhanced Flamer Impact Weapon Heavy Mace Slashing Weapon Sigix Broadsword Special Melee Weapon Advanced Datajack Build | -11 -10 -10 -10 -9 -8 -7 -7 -7 -6 -6 -6 -6 -6 -6 -5 -5 -5 -5 -4 -4 -4 -4 -4 -3 -3 -3 -3 -2 -2 ------- Run | Yrd Mat Min Exi Min Mat Fac Low Dat Pro Fac Ext Cet Arc Hub Fac Upp Upp Zhi Pro Fac Upp Upp War Pro Res Arm Lab Res Qua Slots Evolved 16 | . . . . . 4 2 . . . 2 . . . . 2 . . . . 2 . . . . 2 . . 2 . Power 1 | . . . . . . . . . . 1 . . . . . . . . . . . . . . . . . . . Propulsion 5 | . . . . . 2 1 . . . . . . . . 1 . . . . . . . . . 1 . . . . Utility 2 | . . . . . 2 . . . . . . . . . . . . . . . . . . . . . . . . Weapon 8 | . . . . . . 1 . . . 1 . . . . 1 . . . . 2 . . . . 1 . . 2 . Parts Attached 277 | 7 . 4 2 1 20 46 4 10 9 22 11 9 7 3 10 3 1 5 10 22 6 1 10 5 17 12 12 4 4 Power 24 | 1 . 1 . . 1 2 . 1 2 4 1 1 . . 1 . . . 1 2 2 . . 1 1 . 2 . . Engine 11 | 1 . 1 . . 1 2 . 1 1 2 1 . . . . . . . . 1 . . . . . . . . . Core 1 | . . . . . . . . . . . . . . . 1 . . . . . . . . . . . . . . Reactor 12 | . . . . . . . . . 1 2 . 1 . . . . . . 1 1 2 . . 1 1 . 2 . . Propulsion 64 | 2 . 1 . 1 9 16 1 2 3 5 2 3 . 1 2 . . 3 3 1 . . 3 . 3 1 . 2 . Treads . | . . . . . . . . . . . . . . . . . . . . . . . . . . . . . . Leg 64 | 2 . 1 . 1 9 16 1 2 3 5 2 3 . 1 2 . . 3 3 1 . . 3 . 3 1 . 2 . Wheel . | . . . . . . . . . . . . . . . . . . . . . . . . . . . . . . Hover . | . . . . . . . . . . . . . . . . . . . . . . . . . . . . . . Flight . | . . . . . . . . . . . . . . . . . . . . . . . . . . . . . . Utility 85 | 1 . 1 1 . 6 11 2 4 . 6 4 4 3 . 2 1 1 2 2 9 2 1 4 1 9 3 5 . . Device 45 | . . 1 . . 2 5 2 2 . 3 . 1 2 . 1 1 1 1 2 5 2 . 2 1 4 3 4 . . Storage 10 | 1 . . 1 . 2 1 . 2 . . . . . . 1 . . . . 1 . . 1 . . . . . . Processor 10 | . . . . . 1 1 . . . . 2 . . . . . . . . 1 . 1 1 . 3 . . . . Hackware 7 | . . . . . 1 . . . . . 1 . . . . . . . . 2 . . . . 2 . 1 . . Protection 13 | . . . . . . 4 . . . 3 1 3 1 . . . . 1 . . . . . . . . . . . Artifact . | . . . . . . . . . . . . . . . . . . . . . . . . . . . . . . Weapon 104 | 3 . 1 1 . 4 17 1 3 4 7 4 1 4 2 5 2 . . 4 10 2 . 3 3 4 8 5 2 4 Energy Gun 49 | 1 . 1 . . 2 13 1 3 . 1 4 1 3 . 3 1 . . 2 2 1 . 2 . 2 3 2 . 1 Energy Cannon 30 | . . . . . . . . . 4 6 . . . 1 . 1 . . 1 7 . . . . 2 4 2 1 1 Ballistic Gun 5 | 2 . . . . . . . . . . . . . . . . . . . . . . . 3 . . . . . Ballistic Cannon 1 | . . . . . . 1 . . . . . . . . . . . . . . . . . . . . . . . Launcher 14 | . . . 1 . 1 3 . . . . . . . 1 2 . . . 1 . 1 . 1 . . 1 . 1 1 Special Weapon 2 | . . . . . . . . . . . . . . . . . . . . 1 . . . . . . 1 . . Impact Weapon 1 | . . . . . 1 . . . . . . . . . . . . . . . . . . . . . . . . Slashing Weapon 1 | . . . . . . . . . . . . . . . . . . . . . . . . . . . . . 1 Piercing Weapon . | . . . . . . . . . . . . . . . . . . . . . . . . . . . . . . Special Melee Weapon 1 | . . . . . . . . . . . . . 1 . . . . . . . . . . . . . . . . Unidentified Prototypes 53 | . . . . . 1 7 1 2 1 2 . 2 1 . 2 . . 5 . 2 . . 7 2 3 1 14 . . Corrupted Parts 24 | . . 1 . 1 2 . . 5 8 . . . 2 . . . . . 3 . . . 1 1 . . . . . System Corruption 107 | . . 5 . 3 8 . . 27 41 . . . 6 . . . . . 12 . . . 3 2 . . . . . Parts Lost 64 | . . 4 . 2 4 4 4 12 1 . . 1 . . . . 3 . 8 . 1 . 1 2 . . . 9 8 Power 4 | . . 1 . . . . . 1 . . . . . . . . . . 1 . . . . . . . . . 1 Propulsion 23 | . . 1 . 1 2 2 . 5 . . . 1 . . . . 2 . 3 . . . . . . . . 4 2 Utility 8 | . . 1 . . 1 1 1 2 . . . . . . . . . . 1 . 1 . . . . . . . . Weapon 29 | . . 1 . 1 1 1 3 4 1 . . . . . . . 1 . 3 . . . 1 2 . . . 5 5 Highest Loss Streak 12 | . . 4 . 2 2 1 4 12 1 . . 1 . . . . 3 . 2 . 1 . 1 2 . . . 9 6 To Critical Strikes 6 | . . . . . 1 . . . . . . . . . . . . . . . . . . . . . . 5 . Average Backups 17 | . 3 5 7 4 8 15 18 9 19 19 19 19 19 20 19 20 18 19 18 18 19 19 18 17 18 19 19 16 16 Power 1 | . 1 1 1 1 2 1 1 . 1 2 2 1 2 2 2 2 2 2 1 1 1 1 . 1 2 2 1 2 2 Propulsion 2 | . . 1 1 . . 5 4 1 4 4 4 4 2 2 1 2 1 2 3 1 2 2 2 2 2 2 2 2 4 Utility 6 | . . . . 1 1 2 3 2 7 6 5 6 7 8 8 8 7 8 7 9 9 9 9 10 11 10 9 9 9 Weapon 6 | . 2 3 4 2 4 6 9 4 7 6 7 7 7 8 7 8 7 7 5 6 6 7 5 4 3 5 5 2 . Tool/Special . | . . . . . . . . . . . . . . . . . . . . . . . . . . . . . . Unused Backups 39 | . . . . . 4 3 1 . . 6 2 1 1 1 2 1 . 1 . 2 . . 2 . . 3 . . 9 Power 8 | . . . . . 2 1 . . . 1 . . . . . . . . . 1 . . . . . 2 . . 1 Propulsion 8 | . . . . . . 1 . . . 1 1 . . . . . . 1 . . . . . . . . . . 4 Utility 11 | . . . . . . . . . . 3 1 1 . . 1 . . . . 1 . . 1 . . . . . 3 Weapon 10 | . . . . . 2 . 1 . . 1 . . 1 1 1 1 . . . . . . 1 . . 1 . . . Tool/Special 2 | . . . . . . 1 . . . . . . . . . . . . . . . . . . . . . . 1 Average Slot Usage (%) 92 | . 85 87 65 95 77 97 93 65 83 87 99 99 99 100 99 99 99 98 91 97 99 99 99 93 88 88 86 75 74 Engine 2 | . 14 14 14 14 9 7 7 5 7 3 1 . . . . . . . . 1 . . . . . . . . . Reactor 5 | . . . . . . . . . . 8 10 11 13 13 10 5 5 5 4 6 9 10 10 8 4 4 6 8 8 Leg 32 | . 28 27 28 23 29 37 37 27 38 32 32 32 33 33 35 35 34 35 29 29 31 31 31 31 31 32 31 24 21 Device 8 | . . 2 . . 4 12 10 8 7 7 12 13 11 13 10 11 11 9 8 10 9 9 9 9 5 3 4 4 3 Storage 6 | . 14 14 18 28 12 7 7 3 7 6 6 6 6 6 5 5 5 5 5 5 5 5 5 5 4 4 4 4 4 Protection 3 | . . . . . . 5 6 . . 1 4 5 7 6 5 5 5 5 6 3 5 5 5 4 . . . . . Energy Gun 13 | . 14 23 3 . 3 15 16 16 16 10 12 16 23 15 18 16 17 17 15 16 15 15 14 2 6 9 11 9 7 Energy Cannon 9 | . . . . . . . . . 4 15 13 9 2 6 5 5 5 5 6 16 18 15 15 21 19 17 19 18 18 Ballistic Gun 1 | . 14 4 . 13 . . . . . . . . . . . . . . . . . . . 6 11 6 . . . Launcher 2 | . . . . 14 7 4 5 2 1 . . . . 3 3 5 5 5 3 . 1 5 5 2 . 1 2 2 3 Peak Build Rating 221 | 6 6 10 8 9 26 59 66 78 89 101 88 89 93 93 118 113 109 119 119 139 138 137 161 162 178 189 203 221 216 Average Rating 100 | 4 6 6 5 8 16 41 58 57 78 91 83 83 87 90 105 111 107 112 107 128 134 134 144 153 171 185 193 195 196 On Entrance 93 | . 6 6 6 8 9 26 56 66 78 84 86 78 87 89 89 112 109 107 119 108 138 134 134 161 155 178 187 201 181 Avg Prop Armor Cover (%) 2 | . . . . . . . . . . 3 . . . . . . 2 2 3 . 2 2 . . . . . . 2 Naked Turns . | . . . . . . . . . . . . . . . . . . . . . . . . . . . . . . Heaviest Build 200 | 14 14 15 25 24 46 80 78 75 76 109 121 116 106 105 117 113 114 114 121 142 141 146 167 167 147 154 188 200 187 Greatest Support 201 | 20 20 20 20 20 48 84 81 101 122 124 116 93 88 101 139 139 119 166 161 150 150 150 170 170 198 194 189 201 193 Greatest Overweight (x) 8 | 1 . . 1 2 8 1 . 4 . 1 1 1 1 1 . . 1 1 . 1 1 1 . . . . . 2 1 Average Overweight (x) . | . . . . 1 . . . . . . . 1 1 1 . . . . . . . . . . . . . . . Largest Inventory Capacity 20 | 8 8 8 10 10 15 20 20 20 20 20 20 20 20 20 20 20 20 20 20 20 20 20 20 20 20 20 20 20 20 Average Capacity 18 | 7 8 8 8 10 11 17 20 13 20 20 20 20 20 20 20 20 20 20 20 20 20 20 20 20 20 20 20 20 20 Most Carried 20 | 2 4 8 8 6 12 20 20 20 20 20 20 20 20 20 20 20 20 20 20 20 20 20 20 20 20 20 20 20 19 Average Carried 17 | . 3 5 7 4 8 15 19 9 19 19 19 19 19 20 19 20 18 19 18 18 19 19 19 19 19 19 19 17 16 Final Capacity 20 | 8 8 8 10 10 15 20 20 20 20 20 20 20 20 20 20 20 20 20 20 20 20 20 20 20 20 20 20 20 20 Final Carried 20 | 2 4 5 6 5 12 20 20 20 20 20 20 20 20 20 20 20 19 19 16 20 19 20 20 20 20 20 20 14 19 Class Distribution -------------------- 36% | Scavenger-Skirmisher 21% | Scavenger-Executioner 12% | Hacker-Executioner 7% | Mutant 5% | Skirmisher 5% | Gunner 3% | Tank 3% | Scavenger-Assassin Dominant Class ---------------- Mutant | -10/Materials Mutant | -10/Mines Mutant | -10/Exiles Mutant | -9/Mines Scavenger-Assassin | -8/Materials Scavenger-Skirmisher | -7/Factory Tank | -7/Lower Caves Gunner | -7/Data Miner Gunner | -6/Proximity Caves Skirmisher | -6/Factory Scavenger-Skirmisher | -6/Extension Scavenger-Skirmisher | -6/Cetus Scavenger-Skirmisher | -6/Archives Scavenger-Skirmisher | -6/Hub_04(d) Scavenger-Skirmisher | -5/Factory Scavenger-Skirmisher | -5/Upper Caves Scavenger-Skirmisher | -5/Upper Caves Scavenger-Skirmisher | -5/Zhirov Scavenger-Tank | -4/Proximity Caves Scavenger-Executioner | -4/Factory Scavenger-Executioner | -4/Upper Caves Scavenger-Executioner | -4/Upper Caves Scavenger-Executioner | -4/Warlord Scavenger-Executioner | -3/Proximity Caves Hacker-Executioner | -3/Research Hacker-Executioner | -3/Armory Hacker-Executioner | -3/Lab Hacker-Executioner | -2/Research Hacker-Executioner | -2/Quarantine Resources | -11 -10 -10 -10 -9 -8 -7 -7 -7 -6 -6 -6 -6 -6 -6 -5 -5 -5 -5 -4 -4 -4 -4 -4 -3 -3 -3 -3 -2 -2 ----------- Run | Yrd Mat Min Exi Min Mat Fac Low Dat Pro Fac Ext Cet Arc Hub Fac Upp Upp Zhi Pro Fac Upp Upp War Pro Res Arm Lab Res Qua Matter Collected 9303 | 248 37 73 . 54 346 969 662 393 102 2268 260 175 145 36 148 150 196 . 480 369 146 152 127 387 276 483 75 444 102 Remotely . | . . . . . . . . . . . . . . . . . . . . . . . . . . . . . . Salvage Created 13939 | . 156 108 . 121 607 1896 623 395 51 1793 1181 361 308 . 638 238 561 . 767 1115 114 32 53 284 175 1000 75 684 603 Parts 523 | . 6 6 . 6 23 93 25 16 2 68 45 7 22 . 25 13 15 . 24 29 . 1 . 16 2 33 6 9 31 Haulers Intercepted 9 | . . . . . 2 3 . . . 1 . . . . 1 . . . . 2 . . . . . . . . . Recyclers Shooed 7 | . . . . . . . . . . 2 1 . . . 2 . . . . 2 . . . . . . . . . Parts Field Recycled 9 | . . . . . . 9 . . . . . . . . . . . . . . . . . . . . . . . Retrieved Matter 71 | . . . . . . 71 . . . . . . . . . . . . . . . . . . . . . . . Parts Self-Destructed 87 | . . . . . . . 20 . 1 . . . . . . 15 12 . 22 . . 6 . 11 . . . . . Prevented 9 | . . . . . . . . . 3 . . . . . . . 3 . 3 . . . . . . . . . . Parts Restored . | . . . . . . . . . . . . . . . . . . . . . . . . . . . . . . Kills | -11 -10 -10 -10 -9 -8 -7 -7 -7 -6 -6 -6 -6 -6 -6 -5 -5 -5 -5 -4 -4 -4 -4 -4 -3 -3 -3 -3 -2 -2 ------- Run | Yrd Mat Min Exi Min Mat Fac Low Dat Pro Fac Ext Cet Arc Hub Fac Upp Upp Zhi Pro Fac Upp Upp War Pro Res Arm Lab Res Qua Combat Hostiles Destroyed 233 | . 3 3 . 7 10 34 16 4 3 15 18 4 . . 6 5 15 . 19 12 9 2 . 15 . 18 1 6 8 Melee 3 | . . . . . 3 . . . . . . . . . . . . . . . . . . . . . . . . Guns 77 | . 2 3 . 2 1 15 8 1 . 6 7 2 . . 2 3 4 . 4 3 3 1 . 2 . 7 . 1 . Cannons 52 | . . . . . . . . . 1 9 7 1 . . 1 . 2 . 2 7 . 1 . 6 . 10 1 3 1 AOE 75 | . 1 . . 5 3 16 7 . 2 . . . . . 1 2 8 . 11 . 6 . . 7 . . . 2 4 Classes Destroyed 23 | . 2 1 . 1 7 2 1 . 1 . 2 . . . 1 . . . 1 . 1 . . . . 2 . 1 . Worker 15 | . . . . . 2 8 . . . 5 . . . . . . . . . . . . . . . . . . . Builder 10 | . . . . . . 8 . . . 1 . . . . 1 . . . . . . . . . . . . . . Tunneler 1 | . . . . . . . . . . . . . . . 1 . . . . . . . . . . . . . . Hauler 9 | . . . . . 2 3 . . . 1 . . . . 1 . . . . 2 . . . . . . . . . Recycler 14 | . . . . . 1 2 . . . 6 2 . . . 1 . . . . 1 . . . . 1 . . . . Minesweeper 1 | . . . . . . . 1 . . . . . . . . . . . . . . . . . . . . . . Operator 11 | . . . . . . . . . . . 1 . 9 . . . . . . 1 . . . . . . . . . Drone 4 | . . . . . . . . . 2 . . . . . . . . . . . . . . 2 . . . . . Watcher 7 | . 1 . . . 1 1 . . . . . . . . 1 . . . . 1 . . . . 1 1 . . . Swarmer 50 | . . . . 4 . 7 4 . . 3 6 . . . 1 . 4 . 8 . . . . 6 . 7 . . . Saboteur 3 | . . . . . . . . . . . . . . . . . . . . . . . . . . 1 . . 2 Grunt 87 | . 3 2 . 3 5 20 9 . 1 2 6 . . . 3 2 9 . 3 5 . . . 5 . 4 . . 5 Brawler 3 | . . . . . 1 . . . . . . . . . . . . . 2 . . . . . . . . . . Duelist 7 | . . . . . 1 1 1 . . 1 . . . . . 1 . . 1 . . . . . . 1 . . . Protector 1 | . . . . . . . . . . . . . . . . . . . 1 . . . . . . . . . . Sentry 21 | . . . . . 2 . 1 . . 5 3 . . . 1 . . . 2 4 . . . 2 . 1 . . . Demolisher 1 | . . 1 . . . . . . . . . . . . . . . . . . . . . . . . . . . Specialist 2 | . . . . . . . . . . . . . . . . . . . . . . . . . . 2 . . . Hunter 12 | . . . . . 1 2 1 . . . 1 . . . . 2 2 . 2 . . . . . . 1 . . . Programmer 18 | . . . . . . 4 . . . 4 . . . . 1 . . . . 3 . 2 . . . 1 . 2 1 Behemoth 2 | . . . . . . . . . . . 2 . . . . . . . . . . . . . . . . . . Cetus Guard 4 | . . . . . . . . . . . . 4 . . . . . . . . . . . . . . . . . Enhanced Grunt 4 | . . . . . . . . 4 . . . . . . . . . . . . . . . . . . . . . Decomposer 1 | . . . . . . . . . . . . . . . . . 1 . . . . . . . . . . . . Assembled 9 | . . . . . . . . . . . . . . . . . . . . . 9 . . . . . . . . Knight 2 | . . . . . . . . . . . . . . . . . . . . . . . . . . . . 2 . Best Kill Streak 12 | . 4 2 . 4 3 10 8 3 2 4 5 2 7 . 5 3 6 . 12 4 9 2 . 9 1 3 1 3 5 Combat Bots Only 12 | . 3 2 . 4 3 6 8 3 2 3 4 2 . . 3 3 6 . 12 3 9 2 . 9 . 3 1 3 5 Max Kills in Single Turn 6 | . 2 1 . 2 1 6 2 1 2 2 2 1 2 . 1 1 4 . 5 2 6 1 1 5 1 1 1 1 1 Gunslinging 1 | . . . . . . . 1 . . . . . . . . . . . . . . . . . . . . . . Exploded 6 | . 1 . . 2 1 5 2 . 2 . . . . . 1 1 4 . 5 . 6 . . 5 . . . 1 1 Melee 1 | . . . . . 1 . . . . . . . . . . . . . . . . . . . . . . . . Uniques/NPCs Destroyed 5 | . . . . . . . . . . . . 1 . . . . . . . . . . 1 . . . 1 2 . A7 (-6/Cetus) LV-01A (-4/Warlord) A5 (-3/Lab) Warlord (-2/Research) God Mode (-2/Research) Combat | -11 -10 -10 -10 -9 -8 -7 -7 -7 -6 -6 -6 -6 -6 -6 -5 -5 -5 -5 -4 -4 -4 -4 -4 -3 -3 -3 -3 -2 -2 -------- Run | Yrd Mat Min Exi Min Mat Fac Low Dat Pro Fac Ext Cet Arc Hub Fac Upp Upp Zhi Pro Fac Upp Upp War Pro Res Arm Lab Res Qua Hostile Shots Fired 1379 | . 5 28 . 22 49 150 65 51 2 164 103 37 . 3 18 28 68 . 120 51 24 14 10 63 2 82 12 114 94 Missed 474 | . 4 3 . 10 16 48 20 23 . 59 32 12 . 2 6 13 20 . 41 21 6 5 4 29 1 30 6 28 35 Hits 905 | . 1 25 . 12 33 102 45 28 2 105 71 25 . 1 12 15 48 . 79 30 18 9 6 34 1 52 6 86 59 Melee 36 | . . . . . 7 . 3 . . 6 . . . . . . . . 13 . 2 . . . 1 2 . 2 . Projectile 869 | . 1 25 . 12 26 102 42 28 2 99 71 25 . 1 12 15 48 . 66 30 16 9 6 34 . 50 6 84 59 AOE 25 | . . 11 . . . . . . . . . . . . . . . . . . . . 1 . . . . 13 . Critical Strikes 51 | . . . . 1 4 5 1 . . 1 . 3 . . . 1 2 . 8 . 1 . . 1 . 1 . 17 5 Part Disruptions 7 | . . . . . . . . . . . . . . . 1 . . . . . 4 . . . . . . 1 1 Damage Taken 20837 | . 10 627 . 213 624 2260 847 1322 36 1442 801 446 54 20 231 323 1023 . 2789 699 409 150 236 828 63 1058 160 2473 1693 Core 1635 | . . 164 . 16 112 227 31 117 . 74 41 9 . . 19 27 81 . 284 133 . . . 25 . 31 . 130 114 Absorbed by Shields 146 | . . . . . . . . . . . 66 80 . . . . . . . . . . . . . . . . . Ignored by Resistances 467 | . . . . . . . . . . . 214 164 . . . . . . . 51 . 38 . . . . . . . Regen/Repaired (Parts) 2407 | . . . . . . 65 . . . 125 . 1 119 . 46 19 124 . 206 1367 29 48 136 122 . . . . . Core Remaining (%) 71 | 100 . . . 28 79 . . . 46 . . . . 85 . . . . 53 . . . . 86 . . 97 . . Volleys Fired 634 | . 7 16 . 19 25 78 26 24 2 64 43 32 20 6 17 7 26 . 33 29 6 5 2 21 7 47 16 27 29 Largest 9 | . 2 2 . 2 2 3 3 3 3 4 4 4 4 4 5 5 5 . 5 7 3 6 5 5 4 8 8 9 5 Hottest 935 | . 60 90 . 70 90 191 199 174 149 335 335 310 276 316 391 383 383 . 402 660 230 545 450 450 410 644 865 935 487 Shots Fired 1723 | . 14 29 . 22 38 152 60 44 5 163 150 113 80 19 42 22 60 . 90 134 16 23 9 64 15 170 47 101 41 Gun 960 | . 14 29 . 17 32 127 53 37 2 69 70 72 80 13 25 16 40 . 55 49 15 9 3 10 2 75 6 34 6 Cannon 643 | . . . . . . 6 . . 2 94 80 41 . 6 13 4 14 . 20 70 . 14 6 49 13 95 41 56 19 Launcher 105 | . . . . 5 6 19 7 7 1 . . . . . 4 2 6 . 15 . 1 . . 5 . . . 11 16 Special 15 | . . . . . . . . . . . . . . . . . . . . 15 . . . . . . . . . Kinetic 64 | . 7 12 . 16 . 6 . . . . . . . . . . . . . . . . . . . 23 . . . Thermal 1387 | . . 7 . . . 101 53 37 4 149 150 113 80 19 33 20 54 . 60 129 15 23 8 49 15 129 45 69 25 Explosive 51 | . . . . 5 6 10 7 . 1 . . . . . . 2 3 . 12 . . . . 5 . . . . . Electromagnetic 186 | . 7 10 . 1 32 35 . 7 . 14 . . . . 9 . 3 . 18 5 1 . . . . . 2 26 16 Entropic 35 | . . . . . . . . . . . . . . . . . . . . . . . 1 10 . 18 . 6 . Robot Hit Streak 21 | . 3 11 . 6 9 21 10 6 4 19 6 12 5 6 12 3 5 . 11 12 3 4 1 8 7 15 14 16 5 Robot Miss Streak 9 | . 3 2 . 3 5 4 2 3 . 3 4 3 5 2 4 8 9 . 3 3 2 2 9 8 1 6 4 4 8 Penetration Max . | . . . . . . . . . . . . . . . . . . . . . . . . . . . . . . Secondary Targets 9 | . . . . . . 1 4 . . . . . . . . . 2 . . . . . . . . 2 . . . Max Gunslinging Chain 1 | . . . . . . 1 1 . . . . . . . . . 1 . . . . . . . . 1 . . . Shots Hit Robots 1020 | . 7 20 . 14 41 110 46 31 2 106 69 77 47 11 25 11 33 . 46 73 9 12 1 31 9 82 26 67 14 Core Hits 670 | . 4 6 . 14 18 87 35 20 4 50 33 25 21 3 15 13 46 . 52 33 11 1 1 29 2 32 9 39 67 Critical Kills 6 | . . . . . . . . . . . 2 . . . . . . . . 2 . . . . 1 1 . . . Critical Parts Destroyed 4 | . . . . 1 3 . . . . . . . . . . . . . . . . . . . . . . . . Critical Strikes 45 | . . . . 1 5 9 1 1 . 2 6 2 4 1 . . 2 . 3 4 . . . . 1 3 . . . Burn 33 | . . . . . . 9 1 1 . 2 4 2 4 1 . . 2 . 3 2 . . . . . 2 . . . Meltdown 6 | . . . . . . . . . . . 2 . . . . . . . . 2 . . . . 1 1 . . . Destroy 1 | . . . . 1 . . . . . . . . . . . . . . . . . . . . . . . . . Corrupt 2 | . . . . . 2 . . . . . . . . . . . . . . . . . . . . . . . . Smash 3 | . . . . . 3 . . . . . . . . . . . . . . . . . . . . . . . . Melee Attacks 29 | . . . . . 24 2 . . . . . . 3 . . . . . . . . . . . . . . . . Impact 26 | . . . . . 24 2 . . . . . . . . . . . . . . . . . . . . . . . Slashing . | . . . . . . . . . . . . . . . . . . . . . . . . . . . . . . Piercing . | . . . . . . . . . . . . . . . . . . . . . . . . . . . . . . Sneak Attacks 8 | . . . . . 3 2 . . . . . . 3 . . . . . . . . . . . . . . . . Combat Hostiles . | . . . . . . . . . . . . . . . . . . . . . . . . . . . . . . Follow-up Attacks . | . . . . . . . . . . . . . . . . . . . . . . . . . . . . . . Damage Inflicted 43645 | . 262 257 . 369 1577 5076 1418 770 178 2884 2330 2319 1261 410 1141 441 2199 . 3262 2459 904 476 41 2948 301 3122 775 4669 1796 Guns 13744 | . 106 257 . 86 287 1648 832 366 . 1084 901 1321 1261 264 458 176 661 . 803 846 237 115 . 364 48 1187 51 308 77 Cannons 12886 | . . . . . . 156 . . 44 1771 1407 998 . 138 201 77 264 . 313 1442 . 361 41 793 253 1883 724 1860 160 Explosions 15663 | . 156 . . 274 479 3026 586 404 134 27 . . . . 411 188 1274 . 2146 . 655 . . 1791 . 52 . 2501 1559 Melee 992 | . . . . . 796 196 . . . . . . . . . . . . . . . . . . . . . . . Ramming 252 | . . . . 9 15 50 . . . 2 22 . . 8 71 . . . . 63 12 . . . . . . . . Kinetic 791 | . 63 118 . 74 . 156 . . . . . . . . . . . . . . . . . . . 380 . . . Thermal 25955 | . 156 62 . . 63 2128 832 366 44 2732 2308 2319 1261 402 630 253 925 . 951 2301 684 476 41 1124 301 2437 772 2150 237 Explosive 7169 | . . . . 274 416 1310 586 . 134 . . . . . . 188 903 . 1846 . . . . 1460 . 52 . . . Electromagnetic 5368 | . 43 77 . 12 287 1236 . 404 . 150 . . . . 440 . 371 . 465 95 208 . . . . . 3 18 1559 Impact 992 | . . . . . 796 196 . . . . . . . . . . . . . . . . . . . . . . . Slashing . | . . . . . . . . . . . . . . . . . . . . . . . . . . . . . . Piercing . | . . . . . . . . . . . . . . . . . . . . . . . . . . . . . . Entropic 3118 | . . . . . . . . . . . . . . . . . . . . . . . . 364 . 253 . 2501 . Highest Corruption 78 | . . 5 5 8 10 10 10 37 78 1 1 1 7 . . . . . 19 3 6 7 7 5 . . . 50 60 Average Corruption 8 | . . 5 5 6 1 7 10 15 43 1 1 1 1 . . . . . 11 1 5 6 3 3 . . . 39 50 Corruption Purged 10 | . . . . . . . . . . . . . 7 . . . . . . 3 . . . . . . . . . Corruption Blocked . | . . . . . . . . . . . . . . . . . . . . . . . . . . . . . . Effects 359 | . . 4 9 11 8 71 48 24 27 7 13 4 7 . . . . . 24 3 9 24 2 16 . . . 23 25 Message Errors 86 | . . 2 4 2 2 14 17 5 5 1 2 2 1 . . . . . 3 . 2 7 . 7 . . . 6 4 Matter Fused 87 | . . . 1 2 4 24 6 6 8 2 5 . 2 . . . . . 5 1 2 5 . 2 . . . 6 6 Heat Flow Errors 35 | . . . 2 2 1 6 6 4 1 . 2 . 1 . . . . . 3 . 1 1 . 1 . . . 1 3 Energy Discharges 47 | . . 1 . 1 . 7 7 4 6 1 . 2 . . . . . . 4 1 2 4 1 2 . . . 3 1 Parts Rejected 2 | . . . . . . . 1 . 1 . . . . . . . . . . . . . . . . . . . . Parts Fused 3 | . . . . . . 1 . . 1 . . . . . . . . . . . . . . . . . . . 1 Data Loss (minor) 42 | . . 1 2 2 . 8 5 2 2 1 2 . 3 . . . . . 2 1 2 3 . 2 . . . 4 . Data Loss (major) 18 | . . . . 1 1 4 2 1 1 . . . . . . . . . 2 . . 3 1 1 . . . 1 . Misfires 10 | . . . . . . 2 2 . 1 1 . . . . . . . . . . . 1 . 1 . . . . 2 Alerts 12 | . . . . 1 . 2 1 1 1 . 2 . . . . . . . 1 . . . . . . . . . 3 Misdirections 3 | . . . . . . . . . . . . . . . . . . . 1 . . . . . . . . 2 . Weapon Failures 14 | . . . . . . 3 1 1 . 1 . . . . . . . . 3 . . . . . . . . . 5 Overload Shots 3 | . . . . . . . . . . 2 . . . . . . . . 1 . . . . . . . . . . Overflow Damage 1629 | . . . . 6 209 495 13 . 4 29 13 9 . . 47 29 28 . 56 113 55 51 . 126 11 88 29 90 128 Projectiles 426 | . . . . . . 5 . . . 22 13 9 . . . 29 3 . . 113 . 51 . 2 11 45 29 66 28 Explosions 841 | . . . . 6 . 349 13 . 4 7 . . . . 35 . 25 . 56 . 55 . . 124 . 43 . 24 100 Melee 362 | . . . . . 209 141 . . . . . . . . 12 . . . . . . . . . . . . . . Knockbacks 8 | . . . . . 1 5 . . . . . . . . 1 . . . . 1 . . . . . . . . . Impact 5 | . . . . . 1 2 . . . . . . . . 1 . . . . 1 . . . . . . . . . Kinetic 2 | . . . . . . 2 . . . . . . . . . . . . . . . . . . . . . . . Secondary 1 | . . . . . . 1 . . . . . . . . . . . . . . . . . . . . . . . Self-Inflicted Damage 1548 | . . . . 81 . 270 52 . . . . . . . . 81 119 . 393 . 113 . . 60 . . . . 379 Shots 51 | . . . . 3 . 5 2 . . . . . . . . 3 8 . 10 . 2 . . 2 . . . . 16 Rammed . | . . . . . . . . . . . . . . . . . . . . . . . . . . . . . . Targets Rammed 19 | . . . . 1 1 5 . . . 1 1 . . 1 5 . . . . 3 1 . . . . . . . . Kicked 19 | . . . . 1 1 5 . . . 1 1 . . 1 5 . . . . 3 1 . . . . . . . . Crushed . | . . . . . . . . . . . . . . . . . . . . . . . . . . . . . . Highest Temperature 758 | . 6 96 176 190 264 393 271 341 189 456 433 288 311 264 228 216 362 . 426 450 380 349 246 503 246 272 398 758 105 Average Temperature 124 | . 6 58 77 60 72 98 106 122 72 134 142 119 110 86 81 128 128 . 128 141 123 186 120 180 123 102 193 262 58 Received Heat Transfer 3460 | . 6 96 . 66 126 693 243 . 18 159 167 45 . 9 66 81 252 . 594 66 320 . . 48 . 72 . 270 63 Effects 32 | . . . . . . . 2 2 . 6 2 . 1 . . . 3 . 1 1 . 2 . 3 . . 2 7 . Shutdowns 7 | . . . . . . . . . . . . . . . . . . . 1 1 . . . 2 . . 1 2 . Energy Bleed 6 | . . . . . . . . 1 . 2 . . 1 . . . . . . . . . . 1 . . . 1 . Interference 9 | . . . . . . . 2 1 . . 1 . . . . . 2 . . . . 2 . . . . 1 . . Short Circuit 2 | . . . . . . . . . . 1 . . . . . . 1 . . . . . . . . . . . . Damage (minor) 2 | . . . . . . . . . . . 1 . . . . . . . . . . . . . . . . 1 . Damage (major) 6 | . . . . . . . . . . 3 . . . . . . . . . . . . . . . . . 3 . Siege Activations . | . . . . . . . . . . . . . . . . . . . . . . . . . . . . . . Martial Activations . | . . . . . . . . . . . . . . . . . . . . . . . . . . . . . . Shielding Activations . | . . . . . . . . . . . . . . . . . . . . . . . . . . . . . . Robots Disrupted 2 | . . . . . . . . . . . . . . . . . . . . . . . . . . . 1 . 1 Combat Hostiles 2 | . . . . . . . . . . . . . . . . . . . . . . . . . . . 1 . 1 Robots Corrupted 24 | . . . . . 7 5 . 3 . . . . . . 4 . 1 . 1 . . . . . . . . . 3 Combat Hostiles 16 | . . . . . 3 3 . 3 . . . . . . 2 . 1 . 1 . . . . . . . . . 3 Parts Fried 41 | . . . . . 9 9 . 9 . . . . . . 4 . . . 4 . . . . . . . . . 6 Impact Corruptions 18 | . . . . . 12 5 . . . . . . . . 1 . . . . . . . . . . . . . . Robots Melted 13 | . . . . . . . 1 . . . 4 1 1 . . . . . 1 3 . . . . 1 1 . . . Combat Hostiles 10 | . . . . . . . 1 . . . 4 1 . . . . . . 1 2 . . . . . 1 . . . Parts Melted 79 | . . . . . . 14 6 . . 14 13 . 7 . 1 1 1 . 4 11 . . . . 1 2 1 . 3 Heat Transferred 34251 | . 150 185 . . 50 4102 1490 1110 74 4583 3741 2957 2183 481 592 259 1036 . 1664 3030 633 444 . 666 285 2737 869 745 185 Parts Sabotaged . | . . . . . . . . . . . . . . . . . . . . . . . . . . . . . . Parts Stolen . | . . . . . . . . . . . . . . . . . . . . . . . . . . . . . . Parts Stripped . | . . . . . . . . . . . . . . . . . . . . . . . . . . . . . . Power Chain Reactions 8 | . 1 . . . 1 4 . . . . . . . . . . . . . . 1 . . 1 . . . . . Alert | -11 -10 -10 -10 -9 -8 -7 -7 -7 -6 -6 -6 -6 -6 -6 -5 -5 -5 -5 -4 -4 -4 -4 -4 -3 -3 -3 -3 -2 -2 ------- Run | Yrd Mat Min Exi Min Mat Fac Low Dat Pro Fac Ext Cet Arc Hub Fac Upp Upp Zhi Pro Fac Upp Upp War Pro Res Arm Lab Res Qua Maximum Alert Level 5 | . . . . . . 4 . . . 2 3 2 1 3 2 . . . . . . . . . 3 2 . . 5 Low Security (%) 43 | 100 100 100 . 100 100 30 . . . 64 . . 44 10 . . . . . 100 . . . . . 12 . 100 . Level 1 25 | . . . . . . 18 . . . 28 41 42 55 2 95 . . . . . . . . . . 44 . . . Level 2 20 | . . . . . . 29 . . . 6 56 57 . 30 4 . . . . . . . . . 38 42 . . . Level 3 5 | . . . . . . 8 . . . . 2 . . 55 . . . . . . . . . . 61 . . . . Level 4 2 | . . . . . . 13 . . . . . . . . . . . . . . . . . . . . . . . Level 5 . | . . . . . . . . . . . . . . . . . . . . . . . . . . . . . . High Security . | . . . . . . . . . . . . . . . . . . . . . . . . . . . . . . Max Security 2 | . . . . . . . . . . . . . . . . . . . . . . . . . . . . . 99 Peak Influence 2005 | . 91 90 . 109 94 1273 . . . 488 793 488 303 904 413 . . . . 165 . . . . 807 592 . 134 2005 Initial 807 | . . 35 . . . 42 . . . . 231 442 137 24 413 . . . . 151 . . . . 807 273 . . . Average 319 | . 22 25 . 33 32 429 . . . 155 453 407 201 680 299 . . . . 102 . . . . 700 375 . 13 1761 Influence Increases 11409 | . 127 95 . 201 419 1735 400 . 30 960 1164 322 296 1101 302 120 370 . 590 526 . 50 . 270 901 751 . 204 475 Destroy 0b10 Robot/C 5356 | . 60 60 . 140 220 676 320 . 20 400 660 160 80 440 120 100 300 . 500 240 . 40 . 260 . 360 . 40 160 Destroy 0b10 Robot/NC 439 | . 5 . . . 30 109 5 . 10 80 35 10 45 30 25 . . . 5 25 . . . 10 10 5 . . . Destroy Leader 920 | . 22 20 . 20 66 166 30 . . 144 96 . . 82 24 20 40 . 50 66 . 10 . . 2 52 . 10 . Allied During Kill 935 | . . . . . 1 . . . . 13 206 138 125 417 . . . . 35 . . . . . . . . . . Successful Hack 564 | . 6 . . . 10 79 . . . 95 48 . . . 89 . . . . 70 . . . . 129 28 . 10 . Select Force Hacks 110 | . 30 . . . 30 . . . . . . . . 50 . . . . . . . . . . . . . . . Disable Machine 915 | . . 15 . . 15 255 . . . 120 60 . 45 45 30 . . . . 30 . . . . . 165 . 15 120 Anti-Garrison Action 160 | . . . . . . 160 . . . . . . . . . . . . . . . . . . . . . . . Destroy Structure 801 | . 4 . . 41 47 161 . . . 63 29 14 1 37 14 . . . . 50 . . . . 10 96 . 129 105 Advance Influence 750 | . . . . . . . . . . . . . . . . . . . . . . . . . 750 . . . . Lose Combat Pursuer 459 | . . . . . . 129 45 . . 45 30 . . . . . 30 . . 45 . . . . . 45 . . 90 Influence Decreases 11014 | . 36 186 . 201 325 569 1013 647 30 487 847 768 569 327 858 409 300 70 348 676 92 50 . 184 465 713 560 204 80 Entered New Map 3640 | . . 56 . . . 52 467 647 . . 242 348 207 47 432 108 . 70 . 91 35 . . . 29 249 560 . . Time Decay 6435 | . 36 90 . 183 284 487 506 . 30 487 565 310 362 180 416 301 270 . 228 565 57 50 . 164 286 464 . 114 . Lost Part 468 | . . 40 . 18 30 30 40 . . . . 10 . . . . 30 . 80 . . . . 20 . . . 90 80 Lost Ally 321 | . . . . . 11 . . . . . 40 100 . 100 10 . . . 40 20 . . . . . . . . . Purge Threat 150 | . . . . . . . . . . . . . . . . . . . . . . . . . 150 . . . . Squads Dispatched 94 | . 2 . . . 8 24 . . . 5 5 . . 9 4 . . . 1 7 . . . . 5 4 . . 20 Investigation 26 | . 1 . . . 3 6 . . . 1 3 . . 5 1 . . . . 1 . . . . 4 1 . . . Extermination 16 | . . . . . . 5 . . . 3 . . . . 2 . . . . 3 . . . . . 3 . . . Reinforcement 21 | . 1 . . . 2 9 . . . 1 2 . . 2 1 . . . . 2 . . . . 1 . . . . Assault 23 | . . . . . . 1 . . . . . . . 1 . . . . 1 . . . . . . . . . 20 Garrison 8 | . . . . . 3 3 . . . . . . . 1 . . . . . 1 . . . . . . . . . Intercept . | . . . . . . . . . . . . . . . . . . . . . . . . . . . . . . Searches Triggered . | . . . . . . . . . . . . . . . . . . . . . . . . . . . . . . Construction Impeded 7 | . . . . . . 4 . . . 1 2 . . . . . . . . . . . . . . . . . . Haulers Reinforced 6 | . . . . . . 3 . . . . . . . 1 1 . . . . 1 . . . . . . . . . Active Scanning Responses . | . . . . . . . . . . . . . . . . . . . . . . . . . . . . . . Cargo Convoy Interrupts 1 | . . . . . . 1 . . . . . . . . . . . . . . . . . . . . . . . Stealth | -11 -10 -10 -10 -9 -8 -7 -7 -7 -6 -6 -6 -6 -6 -6 -5 -5 -5 -5 -4 -4 -4 -4 -4 -3 -3 -3 -3 -2 -2 --------- Run | Yrd Mat Min Exi Min Mat Fac Low Dat Pro Fac Ext Cet Arc Hub Fac Upp Upp Zhi Pro Fac Upp Upp War Pro Res Arm Lab Res Qua Distress Signals 27 | . . . . . 2 6 . . . 1 2 2 . 1 2 . . . . 3 . . 1 1 . 1 . 5 . Communications Jammed . | . . . . . . . . . . . . . . . . . . . . . . . . . . . . . . Distress Signals . | . . . . . . . . . . . . . . . . . . . . . . . . . . . . . . Times Spotted 432 | . 4 5 . 7 14 66 20 4 3 25 35 10 17 13 9 7 18 . 26 23 9 2 19 18 8 22 1 8 39 Peak Tracking Total 19 | . 4 2 . 4 3 12 9 4 2 4 5 5 1 6 4 3 5 . 9 6 9 2 9 10 3 5 1 4 19 Tactical Retreats 19 | . . . . . . 6 2 . . 2 2 . . . . . 1 . . 1 . . . . . 2 . 1 2 Traps | -11 -10 -10 -10 -9 -8 -7 -7 -7 -6 -6 -6 -6 -6 -6 -5 -5 -5 -5 -4 -4 -4 -4 -4 -3 -3 -3 -3 -2 -2 ------- Run | Yrd Mat Min Exi Min Mat Fac Low Dat Pro Fac Ext Cet Arc Hub Fac Upp Upp Zhi Pro Fac Upp Upp War Pro Res Arm Lab Res Qua Traps Triggered 16 | . . . . . . 7 . . . 2 4 . . 1 . . . . . 1 . . . . 1 . . . . Indirectly . | . . . . . . . . . . . . . . . . . . . . . . . . . . . . . . Trap Hack Attempts . | . . . . . . . . . . . . . . . . . . . . . . . . . . . . . . Triggered . | . . . . . . . . . . . . . . . . . . . . . . . . . . . . . . Disarmed . | . . . . . . . . . . . . . . . . . . . . . . . . . . . . . . Reprogrammed . | . . . . . . . . . . . . . . . . . . . . . . . . . . . . . . Reused . | . . . . . . . . . . . . . . . . . . . . . . . . . . . . . . Traps Extracted . | . . . . . . . . . . . . . . . . . . . . . . . . . . . . . . Installed . | . . . . . . . . . . . . . . . . . . . . . . . . . . . . . . Triggered . | . . . . . . . . . . . . . . . . . . . . . . . . . . . . . . Most Traps Carried 3 | . . . . . . . 3 . . . . . . . . . . . . . . . . . . . . . . Machines | -11 -10 -10 -10 -9 -8 -7 -7 -7 -6 -6 -6 -6 -6 -6 -5 -5 -5 -5 -4 -4 -4 -4 -4 -3 -3 -3 -3 -2 -2 ---------- Run | Yrd Mat Min Exi Min Mat Fac Low Dat Pro Fac Ext Cet Arc Hub Fac Upp Upp Zhi Pro Fac Upp Upp War Pro Res Arm Lab Res Qua Machines Disabled 72 | . . 1 . . 1 17 . 1 . 8 5 . 3 3 2 . . . 1 2 . . . 5 . 11 3 1 8 Max in Single Turn 6 | . . 1 . . 1 6 . 1 . 1 1 . 1 . 1 . . . 1 1 . . . 3 . 1 1 1 2 Garrison Access 5 | . . . . . . 1 . . . 2 . . . 1 . . . . . 1 . . . . . . . . . Network Hub 1 | . . . . . . . . . . . . . . 1 . . . . . . . . . . . . . . . Machines Repaired . | . . . . . . . . . . . . . . . . . . . . . . . . . . . . . . Machines Dismantled . | . . . . . . . . . . . . . . . . . . . . . . . . . . . . . . Machines Sabotaged 1 | . . . . . . . . . . . . . . 1 . . . . . . . . . . . . . . . Overloaded Fab Kills . | . . . . . . . . . . . . . . . . . . . . . . . . . . . . . . Hacking | -11 -10 -10 -10 -9 -8 -7 -7 -7 -6 -6 -6 -6 -6 -6 -5 -5 -5 -5 -4 -4 -4 -4 -4 -3 -3 -3 -3 -2 -2 --------- Run | Yrd Mat Min Exi Min Mat Fac Low Dat Pro Fac Ext Cet Arc Hub Fac Upp Upp Zhi Pro Fac Upp Upp War Pro Res Arm Lab Res Qua Machines Accessed 95 | . 2 . 2 . 6 11 1 3 . 16 11 . . 4 5 3 . 4 . 10 . 1 3 1 3 5 3 1 . Terminals 43 | . 1 . . . 4 5 . . . 7 11 . . 3 3 . . . . 2 . 1 . 1 3 2 . . . Fabricators 10 | . . . . . . 2 . . . 2 . . . . 1 . . . . 3 . . . . . 1 . 1 . Repair Stations 8 | . . . . . . 1 . . . 2 . . . . . . . . . 3 . . . . . 2 . . . Recycling Units 6 | . 1 . . . 1 1 . . . 2 . . . . . . . . . 1 . . . . . . . . . Scanalyzers 3 | . . . . . . 1 . . . 1 . . . . 1 . . . . . . . . . . . . . . Garrison Access 6 | . . . . . 1 1 . . . 2 . . . 1 . . . . . 1 . . . . . . . . . Total Hacks 311 | . 7 . 2 . 18 33 1 18 . 36 22 . . 8 27 9 . 16 . 43 . 1 10 5 14 16 24 1 . Successful 185 | . 3 . 2 . 7 12 1 18 . 15 9 . . 4 17 9 . 16 . 18 . 1 10 5 7 6 24 1 . Failed 125 | . 3 . . . 11 21 . . . 21 13 . . 4 10 . . . . 25 . . . . 7 10 . . . Catastrophic 25 | . . . . . 1 3 . . . 6 4 . . . 3 . . . . 5 . . . . 2 1 . . . Database Lockouts 1 | . 1 . . . . . . . . . . . . . . . . . . . . . . . . . . . . Manual 87 | . 7 . 1 . 13 13 . . . 11 11 1 . 7 6 . . . . 13 . . 1 . . 3 . . . Terminals 135 | . 6 . . . 15 15 . . . 20 22 . . 7 15 . . . . 9 . 1 . 5 14 6 . . . Fabricators 38 | . . . . . . 8 . . . 5 . . . . 6 . . . . 16 . . . . . 2 . 1 . Repair Stations 28 | . . . . . . 3 . . . 4 . . . . . . . . . 13 . . . . . 8 . . . Recycling Units 8 | . 1 . . . 1 1 . . . 2 . . . . . . . . . 3 . . . . . . . . . Scanalyzers 11 | . . . . . . 3 . . . 2 . . . . 6 . . . . . . . . . . . . . . Garrison Access 11 | . . . . . 2 3 . . . 3 . . . 1 . . . . . 2 . . . . . . . . . Terminal Hacks 117 | . 1 . 2 . 2 2 1 18 . 3 5 . . . 7 9 . 16 . 2 . 1 10 5 7 2 24 . . Record 45 | . . . 1 . . . . 2 . . . . . . . 7 . 4 . . . 1 . 5 2 . 23 . . Part Schematic 16 | . . . . . . . . 10 . . . . . . . . . 4 . . . . . . 2 . . . . Robot Schematic 3 | . . . . . . . . 3 . . . . . . . . . . . . . . . . . . . . . Robot Analysis 8 | . 1 . . . . . . . . 1 1 . . . . . . 4 . . . . . . 1 . . . . Prototype ID Bank 18 | . . . . . . 1 . 3 . . . . . . 1 . . 4 . . . . 9 . . . . . . Open Door 7 | . . . . . . . 1 . . . 3 . . . . 2 . . . . . . 1 . . . . . . Branch Access Points 5 | . . . . . . 1 . . . 1 . . . . 1 . . . . 1 . . . . 1 . . . . Machine Index 1 | . . . . . . . . . . . . . . . . . . . . . . . . . . 1 . . . Terminal Index 1 | . . . . . 1 . . . . . . . . . . . . . . . . . . . . . . . . Fabricator Index 1 | . . . . . . . . . . . . . . . 1 . . . . . . . . . . . . . . Unreport Threat 1 | . . . . . . . . . . . . . . . . . . . . . . . . . 1 . . . . Locate Traps 2 | . . . . . . . . . . 1 . . . . 1 . . . . . . . . . . . . . . Recall Extermination 1 | . . . . . . . . . . . . . . . . . . . . . . . . . . 1 . . . Recall Reinforcements 1 | . . . . . . . . . . . . . . . . . . . . 1 . . . . . . . . . Hauler Manifests 1 | . . . . . . . . . . . . . . . 1 . . . . . . . . . . . . . . Registered Components 1 | . . . . . . . . . . . . . . . 1 . . . . . . . . . . . . . . Zone Layout 3 | . . . . . 1 . . . . . 1 . . . 1 . . . . . . . . . . . . . . Proto ID Catalog 1 | . . . 1 . . . . . . . . . . . . . . . . . . . . . . . . . . Release Object 1 | . . . . . . . . . . . . . . . . . . . . . . . . . . . 1 . . Fabricator Hacks 12 | . . . . . . 1 . . . 2 . . . . 3 . . . . 5 . . . . . . . 1 . Network Status 3 | . . . . . . 1 . . . . . . . . 1 . . . . 1 . . . . . . . . . Load Schematic 4 | . . . . . . . . . . 1 . . . . 1 . . . . 2 . . . . . . . . . Build 5 | . . . . . . . . . . 1 . . . . 1 . . . . 2 . . . . . . . 1 . Repair Station Hacks 15 | . . . . . . 2 . . . 3 . . . . . . . . . 6 . . . . . 4 . . . Scan Component 9 | . . . . . . 1 . . . 2 . . . . . . . . . 3 . . . . . 3 . . . Repair 6 | . . . . . . 1 . . . 1 . . . . . . . . . 3 . . . . . 1 . . . Recycling Unit Hacks 1 | . . . . . . . . . . 1 . . . . . . . . . . . . . . . . . . . Process 1 | . . . . . . . . . . 1 . . . . . . . . . . . . . . . . . . . Scanalyzer 5 | . . . . . . 1 . . . 1 . . . . 3 . . . . . . . . . . . . . . Insert Component 4 | . . . . . . 1 . . . 1 . . . . 2 . . . . . . . . . . . . . . Analyze 1 | . . . . . . . . . . . . . . . 1 . . . . . . . . . . . . . . Garrison Access Hacks 4 | . . . . . . . . . . 2 . . . 1 . . . . . 1 . . . . . . . . . Seal Access 4 | . . . . . . . . . . 2 . . . 1 . . . . . 1 . . . . . . . . . Unauthorized Hacks 31 | . 2 . . . 5 6 . . . 3 4 . . 3 4 . . . . 4 . . . . . . . . . Terminals 21 | . 1 . . . 4 2 . . . 3 4 . . 3 2 . . . . 2 . . . . . . . . . Assimilate 2 | . . . . . . . . . . 1 . . . . 1 . . . . . . . . . . . . . . Botnet 13 | . 1 . . . 3 2 . . . 2 3 . . . 1 . . . . 1 . . . . . . . . . Operators 3 | . . . . . 1 . . . . . 1 . . . . . . . . 1 . . . . . . . . . Sabotage 3 | . . . . . . . . . . . . . . 3 . . . . . . . . . . . . . . . Fabricators 6 | . . . . . . 3 . . . . . . . . 2 . . . . 1 . . . . . . . . . Report 2 | . . . . . . 1 . . . . . . . . 1 . . . . . . . . . . . . . . Fabnet 1 | . . . . . . 1 . . . . . . . . . . . . . . . . . . . . . . . Haulers 2 | . . . . . . 1 . . . . . . . . 1 . . . . . . . . . . . . . . Recompile 1 | . . . . . . . . . . . . . . . . . . . . 1 . . . . . . . . . Repair Stations . | . . . . . . . . . . . . . . . . . . . . . . . . . . . . . . Recycling Units 3 | . 1 . . . 1 . . . . . . . . . . . . . . 1 . . . . . . . . . Mask 1 | . . . . . . . . . . . . . . . . . . . . 1 . . . . . . . . . Tunnel 2 | . 1 . . . 1 . . . . . . . . . . . . . . . . . . . . . . . . Scanalyzers . | . . . . . . . . . . . . . . . . . . . . . . . . . . . . . . Garrison Access 1 | . . . . . . 1 . . . . . . . . . . . . . . . . . . . . . . . Jam 1 | . . . . . . 1 . . . . . . . . . . . . . . . . . . . . . . . Data Cores Recovered 2 | . . . . . . . . . . . 1 . . . . . . . . 1 . . . . . . . . . Used . | . . . . . . . . . . . . . . . . . . . . . . . . . . . . . . Hacking Detections 63 | . 1 . . . 5 11 . . . 13 10 . . 1 5 . . . . 8 . . . 1 3 5 . . . Full Trace Events 11 | . . . . . 1 3 . . . 1 3 . . . 1 . . . . . . . . . 1 1 . . . Feedback Events 2 | . . . . . 1 1 . . . . . . . . . . . . . . . . . . . . . . . Corruption 2 | . . . . . 1 1 . . . . . . . . . . . . . . . . . . . . . . . Feedback Blocked . | . . . . . . . . . . . . . . . . . . . . . . . . . . . . . . Robot Schematics Acquired 3 | . . . . . . . . 3 . . . . . . . . . . . . . . . . . . . . . Robots Built . | . . . . . . . . . . . . . . . . . . . . . . . . . . . . . . Authchips . | . . . . . . . . . . . . . . . . . . . . . . . . . . . . . . Time . | . . . . . . . . . . . . . . . . . . . . . . . . . . . . . . Total Robot Build Rating . | . . . . . . . . . . . . . . . . . . . . . . . . . . . . . . Part Schematics Acquired 17 | . . . . . . . . 10 . . . . . . 1 . . 4 . . . . . . 2 . . . . Parts Built 6 | . . . . . . . . . . 1 . . . . 1 . . . . 3 . . . . . . . 1 . Authchips 1 | . . . . . . . . . . . . . . . . . . . . 1 . . . . . . . . . Time 430 | . . . . . . . . . . 117 . . . . 117 . . . . 127 . . . . . . . 69 . Total Part Build Rating 48 | . . . . . . . . . . 7 . . . . 7 . . . . 25 . . . . . . . 9 . Part Studies Acquired . | . . . . . . . . . . . . . . . . . . . . . . . . . . . . . . Parts Repaired 5 | . . . . . . 1 . . . 1 . . . . . . . . . 3 . . . . . . . . . Time 354 | . . . . . . 26 . . . 25 . . . . . . . . . 214 . . . . . 89 . . . Parts Recycled . | . . . . . . . . . . . . . . . . . . . . . . . . . . . . . . Recycled Matter . | . . . . . . . . . . . . . . . . . . . . . . . . . . . . . . Retrieved Matter . | . . . . . . . . . . . . . . . . . . . . . . . . . . . . . . Retrieved Components . | . . . . . . . . . . . . . . . . . . . . . . . . . . . . . . Parts Scanalyzed 3 | . . . . . . 1 . . . . . . . . 2 . . . . . . . . . . . . . . Part Schematics Acquired 1 | . . . . . . . . . . . . . . . 1 . . . . . . . . . . . . . . Parts Damaged . | . . . . . . . . . . . . . . . . . . . . . . . . . . . . . . Bothacking | -11 -10 -10 -10 -9 -8 -7 -7 -7 -6 -6 -6 -6 -6 -6 -5 -5 -5 -5 -4 -4 -4 -4 -4 -3 -3 -3 -3 -2 -2 ------------ Run | Yrd Mat Min Exi Min Mat Fac Low Dat Pro Fac Ext Cet Arc Hub Fac Upp Upp Zhi Pro Fac Upp Upp War Pro Res Arm Lab Res Qua Used RIF Installer . | . . . . . . . . . . . . . . . . . . . . . . . . . . . . . . Robots Hacked 3 | . . . . . . . . . . . . . 3 . . . . . . . . . . . . . . . . Non-combat . | . . . . . . . . . . . . . . . . . . . . . . . . . . . . . . Combat 3 | . . . . . . . . . . . . . 3 . . . . . . . . . . . . . . . . Robot Hacks Applied 3 | . . . . . . . . . . . . . 3 . . . . . . . . . . . . . . . . parse_system 3 | . . . . . . . . . . . . . 3 . . . . . . . . . . . . . . . . Relay Couplers Released . | . . . . . . . . . . . . . . . . . . . . . . . . . . . . . . Fabnet Peak Effective % 3 | . . . . . . . . . 3 3 3 3 3 3 1 1 1 1 . . . . . . . . . . . Robots Rewired 9 | . . . . . . . . . . . 7 . . . . . . . 2 . . . . . . . . . . Allies Hacked . | . . . . . . . . . . . . . . . . . . . . . . . . . . . . . . Hacks Repelled . | . . . . . . . . . . . . . . . . . . . . . . . . . . . . . . Allies | -11 -10 -10 -10 -9 -8 -7 -7 -7 -6 -6 -6 -6 -6 -6 -5 -5 -5 -5 -4 -4 -4 -4 -4 -3 -3 -3 -3 -2 -2 -------- Run | Yrd Mat Min Exi Min Mat Fac Low Dat Pro Fac Ext Cet Arc Hub Fac Upp Upp Zhi Pro Fac Upp Upp War Pro Res Arm Lab Res Qua Total Allies 24 | . . . . 2 . . . . . 1 13 5 . . 1 . . . 2 . . . . . . . . . . Largest Group 10 | . . . . 2 2 . . . . 1 10 10 6 6 1 . . . 2 . . . . . . . . . . Highest-Rated Group 810 | . . . . 39 39 . . . . 99 472 810 550 550 10 . . . 94 . . . . . . . . . . Highest-Rated Ally 159 | . . . . 31 31 . . . . 99 159 159 96 96 10 . . . 47 . . . . . . . . . . Total Orders 12 | . . . . . . . . . . . . . 2 . 1 . . . . 9 . . . . . . . . . STAY 2 | . . . . . . . . . . . . . 1 . 1 . . . . . . . . . . . . . . FOLLOW 1 | . . . . . . . . . . . . . 1 . . . . . . . . . . . . . . . . EXPLORE 9 | . . . . . . . . . . . . . . . . . . . . 9 . . . . . . . . . Ally Attacks 274 | . . . . . 7 . . . . 11 65 52 26 83 . . . . 30 . . . . . . . . . . Total Damage 11329 | . . . . . 103 . . . . 868 2504 1458 1110 4430 . . . . 856 . . . . . . . . . . Kills 79 | . . . . . 2 . . . . 8 21 8 4 29 . . . . 7 . . . . . . . . . . Allies Corrupted 3 | . . . . . . . . . . . . . . . . . . . . 3 . . . . . . . . . Allies Melted . | . . . . . . . . . . . . . . . . . . . . . . . . . . . . . . Intel | -11 -10 -10 -10 -9 -8 -7 -7 -7 -6 -6 -6 -6 -6 -6 -5 -5 -5 -5 -4 -4 -4 -4 -4 -3 -3 -3 -3 -2 -2 ------- Run | Yrd Mat Min Exi Min Mat Fac Low Dat Pro Fac Ext Cet Arc Hub Fac Upp Upp Zhi Pro Fac Upp Upp War Pro Res Arm Lab Res Qua Active Infowar (turns) 10163 | . . . . . 392 2087 375 . . 387 220 . . 163 945 831 584 265 238 439 772 675 1236 354 194 6 . . . Sensors 6 | . . . . . 1 . . . . . . . . . . . . . . . . . . . 5 . . . . IFF 495 | . . . . . . . . . . . . . . . . . . . . . 495 . . . . . . . . Terrain 1103 | . . . . . 391 712 . . . . . . . . . . . . . . . . . . . . . . . Structural 8915 | . . . . . . 1375 371 . . 387 220 . . 163 945 831 584 265 238 439 643 675 1236 354 189 . . . . Traps 4 | . . . . . . . 4 . . . . . . . . . . . . . . . . . . . . . . Seismic 1 | . . . . . . 1 . . . . . . . . . . . . . . . . . . . . . . . Jamming 6 | . . . . . . . . . . . . . . . . . . . . . . . . . . 6 . . . Robot Analysis Total 8 | . 1 . . . . . . . . 1 1 . . . . . . 4 . . . . . . 1 . . . . Derelict Logs Recovered 13 | . . 1 . 2 . . 1 . 3 . . . . . . 2 . . 1 . 2 1 . . . . . . . Drone Launches 12 | . . . . . . . . . . . . . . . . . . . . 12 . . . . . . . . . Drone Recoveries 8 | . . . . . . . . . . . . . . . . . . . . 8 . . . . . . . . . Exploration | -11 -10 -10 -10 -9 -8 -7 -7 -7 -6 -6 -6 -6 -6 -6 -5 -5 -5 -5 -4 -4 -4 -4 -4 -3 -3 -3 -3 -2 -2 ------------- Run | Yrd Mat Min Exi Min Mat Fac Low Dat Pro Fac Ext Cet Arc Hub Fac Upp Upp Zhi Pro Fac Upp Upp War Pro Res Arm Lab Res Qua Turns Passed 24760 | 57 171 349 415 520 732 2604 1363 573 491 1839 1694 686 830 369 1000 831 584 383 509 1681 772 744 1430 558 636 1160 728 693 358 Spaces Moved 14685 | 38 123 234 342 233 338 1571 992 278 382 1009 808 242 315 167 512 636 340 239 291 1048 532 520 758 418 501 752 507 388 171 Core 56 | 4 . . . . 13 . . 39 . . . . . . . . . . . . . . . . . . . . . Treads . | . . . . . . . . . . . . . . . . . . . . . . . . . . . . . . Legs 14629 | 34 123 234 342 233 325 1571 992 239 382 1009 808 242 315 167 512 636 340 239 291 1048 532 520 758 418 501 752 507 388 171 Wheels . | . . . . . . . . . . . . . . . . . . . . . . . . . . . . . . Hover . | . . . . . . . . . . . . . . . . . . . . . . . . . . . . . . Flight . | . . . . . . . . . . . . . . . . . . . . . . . . . . . . . . Fastest Speed 50 | 50 120 120 120 190 120 120 126 120 120 120 120 190 190 190 120 123 124 123 120 120 120 120 110 110 110 110 117 117 120 Average Speed 130 | 118 120 120 120 205 141 125 126 140 121 121 154 190 190 190 121 123 146 153 120 126 137 137 114 110 110 112 117 120 159 Slowest Speed 450 | 190 120 120 190 260 450 194 126 250 122 192 190 190 190 190 123 123 190 190 120 190 190 190 120 110 111 117 117 240 203 Overloaded Moves . | . . . . . . . . . . . . . . . . . . . . . . . . . . . . . . Propulsion Burnouts . | . . . . . . . . . . . . . . . . . . . . . . . . . . . . . . Robots Hopped . | . . . . . . . . . . . . . . . . . . . . . . . . . . . . . . Potential Cave-ins . | . . . . . . . . . . . . . . . . . . . . . . . . . . . . . . Cave-ins Triggered 1 | . . . . . . . . . . . . . . . . . . . 1 . . . . . . . . . . Teleports 2 | . . . . . . . . . . . . . . . . . . 1 . . . . . . . . . . 1 Exploration Rate (%) 50 | 4 29 43 71 57 29 42 80 77 59 22 82 56 90 17 14 66 57 60 48 22 73 68 90 58 15 44 98 7 30 Regions Visited 29 Branch Regions 21 Pre-discovered Areas 12 | . 1 2 1 1 1 . . 1 . . . . . . . 1 . 3 . . 1 . . . . . . . . Known Exits Taken 8 | . . . . . . 1 . . . 1 . . . . 1 . . . 1 1 . . . 1 1 . 1 . . Unknown Exits Taken 21 | 1 1 1 1 1 1 . 1 1 1 . 1 1 1 1 . 1 1 1 . . 1 1 1 . . 1 . 1 . Scrap Searched 13 | . . 1 . 1 . . 2 . . . . . . . . . 1 . 3 . 2 2 . 1 . . . . . Spaces Dug 71 | . . . . . 1 11 . . 17 . . . . 1 3 . 1 . 17 4 . . . 4 3 5 . . 4 Terrain Destroyed 1118 | . 4 . . 45 48 168 106 . 17 27 27 8 . 3 7 71 146 . 156 26 2 7 4 77 5 55 1 71 37 Melee 1 | . . . . . 1 . . . . . . . . . . . . . . . . . . . . . . . . Projectile 205 | . . . . . . . . . . 18 27 8 . 3 7 4 8 . 8 26 2 7 4 19 5 48 1 1 9 AOE 912 | . 4 . . 45 47 168 106 . 17 9 . . . . . 67 138 . 148 . . . . 58 . 7 . 70 28 Terrain Rammed . | . . . . . . . . . . . . . . . . . . . . . . . . . . . . . . Walls Destroyed . | . . . . . . . . . . . . . . . . . . . . . . . . . . . . . . Machines Disabled . | . . . . . . . . . . . . . . . . . . . . . . . . . . . . . . Actions | -11 -10 -10 -10 -9 -8 -7 -7 -7 -6 -6 -6 -6 -6 -6 -5 -5 -5 -5 -4 -4 -4 -4 -4 -3 -3 -3 -3 -2 -2 --------- Run | Yrd Mat Min Exi Min Mat Fac Low Dat Pro Fac Ext Cet Arc Hub Fac Upp Upp Zhi Pro Fac Upp Upp War Pro Res Arm Lab Res Qua Total 18954 | 46 132 272 347 255 511 2066 1056 428 399 1515 1154 393 500 207 862 668 372 254 378 1317 559 535 1321 463 571 979 617 561 216 Wait 2436 | . 1 14 . . 73 257 . 29 . 352 164 85 137 25 298 13 . . 2 148 . 1 515 3 17 140 35 124 3 Move 14656 | 37 122 233 341 232 337 1570 991 277 381 1008 807 241 314 166 511 635 339 238 290 1047 531 519 757 417 500 751 506 387 171 Hop . | . . . . . . . . . . . . . . . . . . . . . . . . . . . . . . Pick Up 223 | 2 2 4 1 1 13 29 11 36 2 21 7 6 5 1 6 2 3 1 5 18 3 1 8 6 3 7 7 5 7 Fast Attach 181 | 6 . 1 1 . 10 18 3 14 1 11 8 6 4 1 4 4 . 5 6 6 4 2 10 3 18 8 22 3 2 Attach 91 | . . 3 2 2 3 8 7 4 1 5 2 1 1 . 1 . 4 1 8 10 1 . 5 2 2 1 6 8 3 Detach 9 | . . . 2 . 1 2 . . . . . 1 . . . . . . . 3 . . . . . . . . . Swap 196 | 1 . 1 . . 10 43 6 6 11 18 8 9 8 3 8 1 . 3 4 29 5 5 2 5 3 6 . 1 . Drop 339 | . . . . . 14 49 11 38 1 35 14 12 8 4 12 6 . 6 2 17 8 2 22 6 21 19 25 6 1 Fire 634 | . 7 16 . 19 25 78 26 24 2 64 43 32 20 6 17 7 26 . 33 29 6 5 2 21 7 47 16 27 29 Melee 29 | . . . . . 24 2 . . . . . . 3 . . . . . . . . . . . . . . . . Ram . | . . . . . . . . . . . . . . . . . . . . . . . . . . . . . . Kick 19 | . . . . 1 1 5 . . . 1 1 . . 1 5 . . . . 3 1 . . . . . . . . Crush . | . . . . . . . . . . . . . . . . . . . . . . . . . . . . . . Escape Stasis 30 | . . . . . . 5 . . . . 20 . . . . . . . . 5 . . . . . . . . . Rewire 109 | . . . . . . . 1 . . . 80 . . . . . . . 28 . . . . . . . . . . Trap . | . . . . . . . . . . . . . . . . . . . . . . . . . . . . . . Miscellaneous 2 | . . . . . . . . . . . . . . . . . . . . 2 . . . . . . . . . Route ------- -11/Scrapyard -10/Materials -10/Mines -10/Exiles -9/Mines -8/Materials -7/Factory (discovered 5 exits: *Fac / *Sto x2 / *Low x2) -7/Lower Caves (discovered 2 exits: [*Low] / *Dat) -7/Data Miner -6/Proximity Caves -6/Factory (discovered 5 exits: *Fac / Low x2 / *Ext x2) -6/Extension (discovered 2 exits: *Fac / *Cet) -6/Cetus (discovered 2 exits: *Fac / [*Arc]) -6/Archives (discovered 3 exits: *Fac / *Hub x2) -6/Hub_04(d) -5/Factory (discovered 2 exits: *Upp x2) -5/Upper Caves -5/Upper Caves (discovered 2 exits: *Fac / *Zhi) -5/Zhirov -4/Proximity Caves -4/Factory (discovered 3 exits: Res / *Upp x2) -4/Upper Caves -4/Upper Caves -4/Warlord -3/Proximity Caves -3/Research (discovered 4 exits: Res / *Arm / Tes x2) -3/Armory -3/Lab -2/Research -2/Quarantine History --------- Turn | Location | Event 5 | -11/Scrapyard | Discovered new exit (range 15) 58 | -11/Scrapyard | Entered Materials 128 | -10/Materials | Central database locked down 187 | -10/Materials | Discovered new exit (range 16) 229 | -10/Materials | Entered Mines 230 | -10/Mines | Assembled infested the area 302 | -10/Mines | Build established: Mutant 327 | -10/Mines | Core integrity fell below 50% 363 | -10/Mines | Lost 4 parts (1p1n1u1w) 539 | -10/Mines | Learned location of Storage (-7) 572 | -10/Mines | Discovered new exit (range 5) 578 | -10/Mines | Entered Exiles 607 | -10/Exiles | Met 8R-AWN 629 | -10/Exiles | Met EX-HEX 666 | -10/Exiles | Met EX-BIN 681 | -10/Exiles | Aligned with FarCom system 683 | -10/Exiles | Given EX-Vault access code 710 | -10/Exiles | Opened EX-Vault 720 | -10/Exiles | Found 0b10 Alert Chip 745 | -10/Exiles | Warned to stay clear of 0b10 Research branches 778 | -10/Exiles | Met EX-DEC 784 | -10/Exiles | Learned location of Zion (-6) 980 | -10/Exiles | Discovered new exit (range 10) 993 | -10/Exiles | Left Exiles lab with 0b10 Alert Chip 993 | -10/Exiles | Entered Mines 1203 | -9/Mines | Found a damaged Exp. Sensor Array with a note attached 1206 | -9/Mines | Found Prototype Device 1388 | -9/Mines | Learned location of Recycling (-7) 1405 | -9/Mines | Learned Materials trap positions 1496 | -9/Mines | Discovered new exit (range 8) 1513 | -9/Mines | Entered Materials 1513 | -8/Materials | Accompanied by 2 allies 1513 | -8/Materials | Evolved 4 slots: Propulsion x2, Utility x2 1514 | -8/Materials | Loaded intel: 28 trap records 1518 | -8/Materials | Led the pair of lost Derelicts to an unsafe place 1600 | -8/Materials | Identified Exp. Sensor Array 1939 | -8/Materials | Garrison activated, responded to threat 1944 | -8/Materials | Met 7R-MNS 2192 | -8/Materials | Discovered new exit (range 15) 2203 | -8/Materials | System corruption reached 10% 2245 | -8/Materials | Entered Factory 2245 | -7/Factory | Evolved 2 slots: Propulsion x1, Weapon x1 2246 | -7/Factory | Caught up to 7R-MNS 2530 | -7/Factory | Build established: Scavenger-Assassin 3149 | -7/Factory | Repaired Aluminum Leg 3189 | -7/Factory | Build established: Scavenger-Skirmisher 3234 | -7/Factory | Garrison activated, responded to threat 3504 | -7/Factory | Discovered new exit (range 14) 3731 | -7/Factory | Discovered new exit (range 9) 3889 | -7/Factory | Identified exit to Storage 3889 | -7/Factory | Identified exit to Lower Caves 3891 | -7/Factory | Cargo convoy interrupted 4245 | -7/Factory | First assault squad dispatched 4486 | -7/Factory | System corruption reached 10% 4849 | -7/Factory | Entered Lower Caves 5080 | -7/Lower Caves | Attracted the attention of an 0b10 outpost 5145 | -7/Lower Caves | Lost 4 parts (1u3w) 5150 | -7/Lower Caves | Build established: Tank 5164 | -7/Lower Caves | Destroyed 8 combat bots 5547 | -7/Lower Caves | Discovered new exit (range 12) 5620 | -7/Lower Caves | Encountered a Warlord checkpoint 5648 | -7/Lower Caves | Found Prototype Device 5708 | -7/Lower Caves | Learned Factory terminal intel 5716 | -7/Lower Caves | Identified Heart of Steel 5988 | -7/Lower Caves | A Derelict revealed a hidden shortcut to meet someone special 6011 | -7/Lower Caves | Build established: Gunner 6146 | -7/Lower Caves | Spotted B-75 Beast 6212 | -7/Lower Caves | Entered Data Miner 6212 | -7/Data Miner | Discovered new exit (range 7) 6236 | -7/Data Miner | Met Data Miner 6259 | -7/Data Miner | Learned location of Section 7 (-2) 6259 | -7/Data Miner | Acquired the access code to Warlord's prototype stash 6300 | -7/Data Miner | Received God Mode back door access code from Data Miner 6316 | -7/Data Miner | Data Conduit disabled 6377 | -7/Data Miner | Core integrity fell below 50% 6423 | -7/Data Miner | Lost 12 parts (1p5n2u4w) 6709 | -7/Data Miner | System corruption reached 30% 6785 | -7/Data Miner | Entered Proximity Caves 7082 | -6/Proximity Caves | Received a Behemoth hack from an annoying Tinkerer 7160 | -6/Proximity Caves | Learned Factory stockpile data 7183 | -6/Proximity Caves | Discovered new exit (range 5) 7257 | -6/Proximity Caves | Learned Factory emergency access door positions 7276 | -6/Proximity Caves | Entered Factory 7276 | -6/Factory | Evolved 2 slots: Power x1, Weapon x1 7277 | -6/Factory | Identified exit to Extension 7280 | -6/Factory | Loaded intel: 28 terminal locations 7516 | -6/Factory | Repaired Flexi-carbon Leg 7846 | -6/Factory | Build established: Skirmisher 8728 | -6/Factory | Heart of Steel transformed into Warbot 8834 | -6/Factory | Identified exit to Lower Caves 8847 | -6/Factory | Discovered new exit (range 6) 9041 | -6/Factory | Build established: Scavenger-Skirmisher 9049 | -6/Factory | Fabricated Shield Leg (x1) 9115 | -6/Factory | Entered Extension 9115 | -6/Extension | Accompanied by 1 ally (Warbot) 9350 | -6/Extension | Rescued a captive Derelict 9568 | -6/Extension | Lost 3 allies 9980 | -6/Extension | Spotted B-75 Beast 9990 | -6/Extension | Destroyed B-75 Beast 10099 | -6/Extension | Spotted B-75 Beast 10104 | -6/Extension | Destroyed B-75 Beast 10216 | -6/Extension | Rescued a captive Derelict 10216 | -6/Extension | Rescued a captive Derelict 10284 | -6/Extension | Rescued A7 10446 | -6/Extension | Rescued a captive Derelict 10447 | -6/Extension | Rescued a captive Derelict 10758 | -6/Extension | Discovered new exit (range 11) 10772 | -6/Extension | Discovered new exit (range 7) 10809 | -6/Extension | Entered Cetus 10809 | -6/Cetus | Accompanied by 10 allies (incl. A7, Warbot) 10814 | -6/Cetus | Acquired a Cetus Manufacturing Module code from A7 10833 | -6/Cetus | Spotted Cetus Guard 10834 | -6/Cetus | Spotted Cetus Guard 10838 | -6/Cetus | Spotted Cetus Guard 10838 | -6/Cetus | Destroyed Cetus Guard 10841 | -6/Cetus | Spotted Cetus Guard 10853 | -6/Cetus | Allies destroyed Cetus Guard 10861 | -6/Cetus | Destroyed Cetus Guard 10862 | -6/Cetus | Allies destroyed Cetus Guard 10885 | -6/Cetus | Lost 5 allies 10977 | -6/Cetus | Started Cetus Manufacturing Module 11002 | -6/Cetus | Manufactured an Enhanced Grunt 11027 | -6/Cetus | Manufactured an Enhanced Grunt 11052 | -6/Cetus | Manufactured an Enhanced Grunt 11077 | -6/Cetus | Manufactured an Enhanced Grunt 11102 | -6/Cetus | Manufactured an Enhanced Grunt 11134 | -6/Cetus | Discovered new exit (range 15) 11173 | -6/Cetus | Spotted Cetus Guard 11173 | -6/Cetus | Spotted Cetus Guard 11176 | -6/Cetus | Spotted Cetus Guard 11177 | -6/Cetus | Spotted Cetus Guard 11186 | -6/Cetus | Allies destroyed Cetus Guard 11195 | -6/Cetus | Destroyed Cetus Guard 11196 | -6/Cetus | Destroyed Cetus Guard 11197 | -6/Cetus | Allies destroyed Cetus Guard 11208 | -6/Cetus | Discovered new exit (range 16) 11219 | -6/Cetus | Met Revision 17 11441 | -6/Cetus | Murdered A7 11447 | -6/Cetus | Found Prototype Protection 11447 | -6/Cetus | Identified Med. Regenerative Plating 11459 | -6/Cetus | Extracted ID and sensor layout for unrecognized location from A7's data core 11495 | -6/Cetus | Entered Archives 11495 | -6/Archives | Accompanied by 6 allies (Warbot) 11565 | -6/Archives | Discovered new exit (range 15) 11751 | -6/Archives | Discovered new exit (range 16) 11831 | -6/Archives | Discovered new exit (range 13) 12325 | -6/Archives | Entered Hub_04(d) 12325 | -6/Hub_04(d) | Accompanied by 6 allies (Warbot) 12325 | -6/Hub_04(d) | Discovered new exit (range 10) 12359 | -6/Hub_04(d) | Garrison activated, responded to threat 12432 | -6/Hub_04(d) | Lost 3 allies 12579 | -6/Hub_04(d) | Network Hub disabled 12582 | -6/Hub_04(d) | Lost 3 allies 12675 | -6/Hub_04(d) | First assault squad dispatched 12694 | -6/Hub_04(d) | Entered Factory 12694 | -5/Factory | Evolved 2 slots: Propulsion x1, Weapon x1 12874 | -5/Factory | Identified exit to Upper Caves 12995 | -5/Factory | Fabricated Shield Leg (x1) 13039 | -5/Factory | Lost 3 allies 13690 | -5/Factory | Found Prototype Launcher 13690 | -5/Factory | Identified Scatter Rocket Array 13694 | -5/Factory | Entered Upper Caves 13786 | -5/Upper Caves | Learned Factory machine intel 13881 | -5/Upper Caves | Entered an active Warlord outpost 13974 | -5/Upper Caves | Learned Research garrison access intel 13974 | -5/Upper Caves | Learned Research security intel 13974 | -5/Upper Caves | Learned Armory emergency access door positions 14422 | -5/Upper Caves | Discovered new exit (range 16) 14525 | -5/Upper Caves | Entered another Upper Caves area 14525 | -5/Upper Caves | Discovered new exit (range 10) 14909 | -5/Upper Caves | Lost 3 parts (2n1w) 15062 | -5/Upper Caves | Discovered new exit (range 11) 15107 | -5/Upper Caves | Attracted the attention of an 0b10 checkpoint 15109 | -5/Upper Caves | Entered Zhirov 15109 | -5/Zhirov | Discovered new exit (range 3) 15144 | -5/Zhirov | Met Zhirov 15178 | -5/Zhirov | Learned location of Testing (-3) 15178 | -5/Zhirov | Learned location of Command (-1) 15197 | -5/Zhirov | Zhirov requested help retrieving the SGEMP Prototype 15226 | -5/Zhirov | Found Alien Artifact 15226 | -5/Zhirov | Identified Integrated Dissipator 15226 | -5/Zhirov | Installed Integrated Dissipator, increased core heat dissipation (+20) 15251 | -5/Zhirov | Found Alien Artifact 15251 | -5/Zhirov | Identified Transdimensional Reconstructor 15251 | -5/Zhirov | Warped through subspace 15492 | -5/Zhirov | Entered Proximity Caves 15493 | -4/Proximity Caves | Identified exit to Factory 15745 | -4/Proximity Caves | Attracted the attention of an 0b10 outpost 15782 | -4/Proximity Caves | Destroyed 12 combat bots 15787 | -4/Proximity Caves | Crushed by falling debris 15787 | -4/Proximity Caves | System corruption reached 10% 15876 | -4/Proximity Caves | Learned Research stockpile data 15905 | -4/Proximity Caves | Spotted B-86 Titan 15926 | -4/Proximity Caves | Allies destroyed B-86 Titan 15961 | -4/Proximity Caves | Attracted the attention of an 0b10 checkpoint 16001 | -4/Proximity Caves | Entered Factory 16001 | -4/Factory | Evolved 2 slots: Weapon x2 16002 | -4/Factory | Identified exit to Research 16003 | -4/Factory | Loaded intel: 276 machine locations 16082 | -4/Factory | Fabricated Enh. Nova Cannon (x2) 16179 | -4/Factory | Discovered new exit (range 14) 16214 | -4/Factory | Repaired Enh. Armored Leg 16296 | -4/Factory | Garrison activated, responded to threat 16322 | -4/Factory | Build established: Scavenger-Executioner 16503 | -4/Factory | Repaired Centrium Medium Armor Plating? 16615 | -4/Factory | Repaired Shield Leg 17224 | -4/Factory | Identified exit to Upper Caves 17483 | -4/Factory | Fabricated Shield Leg (x1) 17620 | -4/Factory | Found Prototype Processor 17620 | -4/Factory | Identified Exp. Signal Interpreter 17682 | -4/Factory | Entered Upper Caves 18108 | -4/Upper Caves | Entered a destroyed Warlord outpost 18173 | -4/Upper Caves | Encountered an infested base 18215 | -4/Upper Caves | Destroyed 9 combat bots 18327 | -4/Upper Caves | Discovered new exit (range 5) 18454 | -4/Upper Caves | Entered another Upper Caves area 18785 | -4/Upper Caves | Learned location of 1 exit from Research 19145 | -4/Upper Caves | Discovered new exit (range 11) 19198 | -4/Upper Caves | Entered Warlord 19244 | -4/Warlord | System corruption cleaned by Quarantine Array 19399 | -4/Warlord | Opened Warlord's prototype stash 19407 | -4/Warlord | Found Prototype Device 19407 | -4/Warlord | Identified Exp. Phase Shifter 19431 | -4/Warlord | Found Prototype Processor 19431 | -4/Warlord | Identified Exp. Core Analyzer 19443 | -4/Warlord | Found Prototype Reactor 19454 | -4/Warlord | Found Prototype Hackware 19744 | -4/Warlord | Visited the Vortex Lab 19749 | -4/Warlord | Warlord's base attacked by MAIN.C 19752 | -4/Warlord | Found Prototype Energy Gun 19752 | -4/Warlord | Identified Vortex Rifle 19755 | -4/Warlord | Found Vortex Rifle 19760 | -4/Warlord | Found Prototype Piercing Weapon 19766 | -4/Warlord | Found Prototype Launcher 19857 | -4/Warlord | Met Warlord 20099 | -4/Warlord | Warlord forces counterattacked 20424 | -4/Warlord | Warlord base infiltrated, sounded retreat 20425 | -4/Warlord | Enhanced Grunt warped into view 20425 | -4/Warlord | Enhanced Grunt warped into view 20425 | -4/Warlord | Enhanced Grunt warped into view 20425 | -4/Warlord | Enhanced Demolisher warped into view 20425 | -4/Warlord | Enhanced Demolisher warped into view 20425 | -4/Warlord | Enhanced Demolisher warped into view 20464 | -4/Warlord | Spotted Striker 20481 | -4/Warlord | Found Corrupted Prototype Launcher 20481 | -4/Warlord | Identified Chain Missile Launcher 20483 | -4/Warlord | Spotted Executioner 20511 | -4/Warlord | Lost 7 allies 20530 | -4/Warlord | Spotted Striker 20531 | -4/Warlord | Spotted Striker 20600 | -4/Warlord | Discovered new exit (range 8) 20606 | -4/Warlord | Lost 6 allies 20624 | -4/Warlord | Murdered LV-01A 20625 | -4/Warlord | Attacked by Warlord forces 20628 | -4/Warlord | Entered Proximity Caves 20728 | -3/Proximity Caves | Spotter reported a threat 20815 | -3/Proximity Caves | Attracted the attention of an 0b10 base 20815 | -3/Proximity Caves | Spotter reported a threat 20816 | -3/Proximity Caves | Spotter reported a threat 20872 | -3/Proximity Caves | Destroyed 9 combat bots 20876 | -3/Proximity Caves | Learned Armory trap positions 20893 | -3/Proximity Caves | Spotter reported a threat 20969 | -3/Proximity Caves | Spotter reported a threat 21042 | -3/Proximity Caves | Found DCF Scrap (13 items) 21049 | -3/Proximity Caves | Identified Vortex Chain Reactor 21097 | -3/Proximity Caves | Discovered exit to Research (range 11) 21186 | -3/Proximity Caves | Entered Research 21186 | -3/Research | Evolved 2 slots: Propulsion x1, Weapon x1 21187 | -3/Research | Identified exit to Testing 21188 | -3/Research | Identified exit to Research 21191 | -3/Research | Loaded intel: 4 garrison access locations 21386 | -3/Research | Revision forces began assault on 0b10 21410 | -3/Research | Identified System Mapper 21476 | -3/Research | Met up with Revision 17++ 21596 | -3/Research | Identified exit to Armory 21704 | -3/Research | Build established: Hacker-Executioner 21822 | -3/Research | Entered Armory 21823 | -3/Armory | Loaded intel: 45 trap records 22671 | -3/Armory | Identified Vortex Catalyst Activator 22672 | -3/Armory | Found Gamma Bomb Array 22675 | -3/Armory | Found Gamma Bomb Array 22951 | -3/Armory | Discovered new exit (range 2) 22982 | -3/Armory | Entered Lab 22982 | -3/Lab | Discovered exit to Research (range 9) 22995 | -3/Lab | Hidden lab's door opened automatically 22995 | -3/Lab | Sensor layout match revealed 22996 | -3/Lab | Gained access to the hidden lab's interior 22997 | -3/Lab | Unable to decrypt terminal 23036 | -3/Lab | Unable to decrypt terminal 23084 | -3/Lab | Unable to decrypt terminal 23118 | -3/Lab | Found Prototype Energy Gun 23118 | -3/Lab | Identified Tachyon Dispersion Ray 23123 | -3/Lab | Found Prototype Energy Cannon 23123 | -3/Lab | Identified Warp Cannon 23127 | -3/Lab | Found Prototype Device 23127 | -3/Lab | Identified AEGIS Remote Shield 23132 | -3/Lab | Found Prototype Hackware 23132 | -3/Lab | Identified Deep Network Scanner 23220 | -3/Lab | Found Prototype Special Weapon 23220 | -3/Lab | Identified Gui. Remote Datajack 23257 | -3/Lab | Found Alien Artifact 23257 | -3/Lab | Identified Core Expander 23257 | -3/Lab | Installed Core Expander, added new Power slot 23262 | -3/Lab | Found Alien Artifact 23262 | -3/Lab | Identified Integrated Mediator 23262 | -3/Lab | Installed Integrated Mediator, increased core attachment efficiency 23286 | -3/Lab | Found Transdimensional Reconstructor 23371 | -3/Lab | Detected by scanners 23394 | -3/Lab | Unable to decrypt terminal 23420 | -3/Lab | Confronted by A5 23453 | -3/Lab | Destroyed A5 23468 | -3/Lab | Found Prototype Hackware 23514 | -3/Lab | Found Alien Artifact 23514 | -3/Lab | Identified Core Reset Matrix 23514 | -3/Lab | Used Core Reset Matrix 23518 | -3/Lab | Sensed 1 artifact in vicinity 23684 | -3/Lab | Discovered exit to Research (range 13) 23695 | -3/Lab | Unable to decrypt terminal 23710 | -3/Lab | Entered Research 23710 | -2/Research | Warlord forces began assault on 0b10 23710 | -2/Research | Evolved 2 slots: Weapon x2 23820 | -2/Research | Research machine network offline 23872 | -2/Research | Fabricated Hvy. Shield Leg (x1) 23884 | -2/Research | Spotted UE-VA0(K) 23884 | -2/Research | Spotted YR-DRF(K) 23886 | -2/Research | Attacked by Warlord 23994 | -2/Research | Destroyed YR-DRF(K) 24002 | -2/Research | Destroyed UE-VA0(K) 24004 | -2/Research | Destroyed Warlord 24006 | -2/Research | Warlord destroyed during the assault 24051 | -2/Research | Destroyed God Mode 24052 | -2/Research | System corruption reached 10% 24052 | -2/Research | System corruption reached 30% 24078 | -2/Research | Lost 9 parts (4n5w) 24096 | -2/Research | Borebot progress halted 24392 | -2/Research | Discovered new exit (range 5) 24403 | -2/Research | Entered Quarantine 24404 | -2/Quarantine | Maximum security lockdown engaged 24404 | -2/Quarantine | Detected hypermatrix surge 24404 | -2/Quarantine | Sensed 15 artifacts in vicinity 24492 | -2/Quarantine | Cryocooling Duct disabled 24507 | -2/Quarantine | Ambient heat levels rising (+20) 24595 | -2/Quarantine | Found Sigix Broadsword 24680 | -2/Quarantine | Found Subatomic Replicator 24737 | -2/Quarantine | Met incapacitated Sigix Warrior 24737 | -2/Quarantine | Lockdown squad dispatched 24751 | -2/Quarantine | Warped through subspace 24761 | -2/Quarantine | Self-destructed Last Messages --------------- 24759_ Door malfunctions. 24759_ E-15 Imp destroyed. 24759_ C-45 Heavy ARC bursts open, deploying its payload. 24759_ H-88 Terminator unfolds itself. 24759_ P-80 Master unfolds itself. 24759_ M-36 Artificer unfolds itself. 24759_ Slug penetrates Wall. 24759_ Enh. Nova Cannon destroyed. 24760_ Vortex Chain Reactor destroyed. 24760_ C-45 Heavy ARC bursts open, deploying its payload. 24760_ H-88 Terminator unfolds itself. 24760_ P-80 Master unfolds itself. 24760_ E-15 Imp unfolds itself. 24761_ C-45 Heavy ARC bursts open, deploying its payload. 24761_ Executioner unfolds itself. 24761_ Striker unfolds itself. 24761_ P-80 Master unfolds itself. 24761_ E-15 Imp unfolds itself. 24761_ P-80 Master resets S-43 Plague, system corruption cleaned. [Achievement: I Was Wrong!] Map ----- +----------------------------------------------------+ | ??????"" " T#T##### "###/###???????????????????? | | ?????""""""""?###??# #???????????????????? | | ?????""""""""??????# "" #???????????????????? | | ????????####???????# "" """ #????#??????????????? | | ???????????????????# " " #??? #??????????????? | | ???????????????????# T " " #?? #??????????????? | | ????????????####???# " #?? #??????????????? | | ????????????#""##### #? #????]?????????? | | ??????###????# + #? #??????????????? | | ??????# ??# ###########? #??????????????? | | ??????# """ # ############ ########???????? | | ??????# " " + ??????? | | ??????#= """ # ##### ??????? | | ??????# ??# #???# ??????? | | ??????# !????# #####+##+## C p ??????? | | ??????#??????# # # ##########?????????? | | ?????????????# # # # ?????????????? | | ?????????????# # ""T"" # s # "?????????????? | | ?????????????# # """ """ + + "" ?? ????????? | | ?????????????# # "&" "&" # # """" ????????? | | ?????????????# # """ """ # # " "" #??????? | | ?????????????? # # # """" ????????? | | ?????????????? # # s # ???????????? | | ?????????????? ##;#;######hpsm# ######???????????? | | ?????????????? ?# #b ###??????????? | | ?????????????? ?# " """ @pg%! ###????????? | | ?????????????? ?# " s# gg%/ "" #????????? | | ????????????????# " """ #" e p """#????????? | | ????????????????# "" #" e T"#????????? | | ????????????????# " """ #"T K E "#????????? | | ????????????????# " " " #"" #????????? | | ????????????????# " """ #"" p%p ## #????????? | | ????????????????# # h ## #????????? | | ????????????????########## # #########?? | | ?????????????????????????# # #?? | | ?????????????????????????# o # """" #?? | | ?????????????????????????##+## ## " """???? | | ????????????????????? """""???? | | ?????????????????????? """ """ # # """""???? | | ????????????????????????""""""" # # " """???? | | ???????????????????????? C # # """""???? | | ?????????????????????????? # + """""???? | | ?????????????????????????? # # " """???? | | ??????????????????????????? # # """" ???? | | ??????????????????????????? # #? ???? | | ??????????????????????########### #? ??? | | ??????????????????????# # #?? #?? | | ??????????????????????# """ """ # #?? #?? | | ??????????????????????# """ """ # #??? #?? | | ??????????????????????# """ """ # #??? #?? | +----------------------------------------------------+ Best States ------------- Heat Dissipation 159 Coolant Potential 80 Energy Generation 79 Energy Capacity 950 Matter Stores 300 Matter Capacity 300 Sight Range 16 Robot Scan Range 18 Terrain Scan Range 16 Terrain Scan Density 10 Jamming Range 14 Corruption Containment 12 Armor Coverage 675 Resistance: KI 30 Resistance: EM 20 Phase Shifting 20 Evasion (%) 70 Targeting Accuracy 8 Core Analysis 8 Offensive Hacking 25 Defensive Hacking 12 Authchip Count 1 Item Schematics ----------------- None Robot Schematics ------------------ None Fabricated ------------ Shield Leg | x1 | -6/Factory Shield Leg | x1 | -5/Factory Enh. Nova Cannon | x2 | -4/Factory | Preloaded Shield Leg | x1 | -4/Factory | Authchip Hvy. Shield Leg | x1 | -2/Research | Preloaded Repaired ---------- Aluminum Leg | 27% | -7/Factory Flexi-carbon Leg | 7% | -6/Factory Enh. Armored Leg | 17% | -4/Factory Centrium Medium Armor Plating | 4% | -4/Factory Shield Leg | 8% | -4/Factory Studied --------- None Alien Tech Used ----------------- Integrated Dissipator Transdimensional Reconstructor Core Expander Integrated Mediator Core Reset Matrix Sigix Broadsword Achievements -------------- Anyone Home? Hornet's Nest I Was Wrong! Challenges ------------ None Game ------ Seed ShieldPointTube Manual? 0 Play Time 04:20:36 Cumulative 246.8 hours Start 2025.11.10 @ 10:49:49 End 2025.11.10 @ 17:53:30 Sessions 3 Manual Loads 0 Difficulty Rogue Special Mode None Game No. 249 Rogue 245 Adventurer 3 Explorer 1 Win Type - Total 1 Types 1/0/0/0/0/0/0/0/0/0 Lore% 75 Gallery% 74 Achievement% 58 Wizard Run 0 Options --------- Layout 0 ASCII 0 Keyboard 0 Movement Mouse Keybinds 0 Fullscreen 2 Font 18/SmallcapsGlow Map View 76x50 Zoom Use 0% Tactical HUD 1 Map Filters NONE Filters NONE Steam 1 RUN: 4158abb0-0918-49cc-a6db-14f27734b8a8